[Event "Titled Tuesday Blitz July 4 Early 2023"]
[White "Ismagilov, Damir"]
[Black "Shuvalova, Polina"]
[WhiteFideId "34199982"]
[BlackFideId "24171760"]
[WhiteElo "2529"]
[BlackElo "2739"]
[Result "1-0"]
[Round "2"]
[TimeControl "180+2"]
[Date "2023.07.04"]
[WhiteClock "0:00:45"]
[BlackClock "0:00:20"]
[Board "72"]

1. e4 {[%clk 0:03:00]}  c6 {[%clk 0:02:59]} 2. Nf3 {[%clk 0:02:59]}  d5 {[%clk 0:03:00]} 3. d3 {[%clk 0:03:00]}  g6 {[%clk 0:02:58]} 4. Nbd2 {[%clk 0:02:55]}  Bg7 {[%clk 0:02:58]} 5. g3 {[%clk 0:02:55]}  e5 {[%clk 0:02:55]} 6. Bg2 {[%clk 0:02:55]}  Ne7 {[%clk 0:02:55]} 7. O-O {[%clk 0:02:55]}  O-O {[%clk 0:02:56]} 8. c3 {[%clk 0:02:55]}  h6 {[%clk 0:02:47]} 9. Re1 {[%clk 0:02:55]}  dxe4 {[%clk 0:02:46]} 10. dxe4 {[%clk 0:02:52]}  Be6 {[%clk 0:02:44]} 11. Nb3 {[%clk 0:02:42]}  Nd7 {[%clk 0:02:42]} 12. Be3 {[%clk 0:02:41]}  Qc7 {[%clk 0:02:40]} 13. Qc2 {[%clk 0:02:36]}  a5 {[%clk 0:02:33]} 14. Rad1 {[%clk 0:02:34]}  Rfd8 {[%clk 0:02:33]} 15. a3 {[%clk 0:02:28]}  a4 {[%clk 0:02:26]} 16. Nc1 {[%clk 0:02:28]}  b5 {[%clk 0:02:24]} 17. h4 {[%clk 0:02:21]}  Nb6 {[%clk 0:02:17]} 18. Rxd8+ {[%clk 0:02:21]}  Rxd8 {[%clk 0:02:17]} 19. Rd1 {[%clk 0:02:22]}  Nc4 {[%clk 0:02:15]} 20. Rxd8+ {[%clk 0:02:10]}  Qxd8 {[%clk 0:02:15]} 21. Bc5 {[%clk 0:02:09]}  Kh7 {[%clk 0:01:30]} 22. Qd3 {[%clk 0:02:02]}  Qxd3 {[%clk 0:01:26]} 23. Nxd3 {[%clk 0:02:02]}  Nc8 {[%clk 0:01:12]} 24. Nfe1 {[%clk 0:01:48]}  Kg8 {[%clk 0:00:54]} 25. Nc2 {[%clk 0:01:41]}  Bf8 {[%clk 0:00:54]} 26. Ne3 {[%clk 0:01:24]}  Bxc5 {[%clk 0:00:52]} 27. Nxc4 {[%clk 0:01:20]}  Bxc4 {[%clk 0:00:34]} 28. Nxc5 {[%clk 0:01:20]}  Nd6 {[%clk 0:00:33]} 29. Nd7 {[%clk 0:01:17]}  f6 {[%clk 0:00:20]} 30. Nxf6+ {[%clk 0:01:15]}  Kf7 {[%clk 0:00:21]} 31. Ng4 {[%clk 0:01:15]}  Ke6 {[%clk 0:00:21]} 32. Nxh6 {[%clk 0:01:16]}  Bd3 {[%clk 0:00:21]} 33. Bh3+ {[%clk 0:01:06]}  Ke7 {[%clk 0:00:21]} 34. Ng8+ {[%clk 0:01:06]}  Kf7 {[%clk 0:00:18]} 35. Nh6+ {[%clk 0:01:03]}  Ke7 {[%clk 0:00:17]} 36. Ng4 {[%clk 0:00:48]}  Nc4 {[%clk 0:00:17]} 37. f4 {[%clk 0:00:43]}  exf4 {[%clk 0:00:16]} 38. gxf4 {[%clk 0:00:44]}  Bxe4 {[%clk 0:00:15]} 39. Ne5 {[%clk 0:00:44]}  Nxb2 {[%clk 0:00:13]} 40. Bd7 {[%clk 0:00:42]}  Kd6 {[%clk 0:00:08]} 41. Be8 {[%clk 0:00:41]}  Nd1 {[%clk 0:00:07]} 42. Bxg6 {[%clk 0:00:41]}  Bxg6 {[%clk 0:00:06]} 43. Nxg6 {[%clk 0:00:42]}  Nxc3 {[%clk 0:00:06]} 44. h5 {[%clk 0:00:42]}  Ke6 {[%clk 0:00:06]} 45. h6 {[%clk 0:00:41]}  Ne2+ {[%clk 0:00:02]} 46. Kf2 {[%clk 0:00:40]}  Nxf4 {[%clk 0:00:02]} 47. Nxf4+ {[%clk 0:00:40]}  Kf7 {[%clk 0:00:03]} 48. Nd3 {[%clk 0:00:33]}  Kg6 {[%clk 0:00:02]} 49. Ke3 {[%clk 0:00:33]}  Kxh6 {[%clk 0:00:02]} 50. Kd4 {[%clk 0:00:34]}  Kg6 {[%clk 0:00:02]} 51. Kc5 {[%clk 0:00:34]}  Kf5 {[%clk 0:00:03]} 52. Kxc6 {[%clk 0:00:35]}  Ke4 {[%clk 0:00:03]} 53. Nb4 {[%clk 0:00:32]}  Kd4 {[%clk 0:00:03]} 54. Kxb5 {[%clk 0:00:32]}  Kc3 {[%clk 0:00:04]} 55. Kxa4 {[%clk 0:00:32]}  Kc4 {[%clk 0:00:05]} 56. Na2 {[%clk 0:00:31]}  Kc5 {[%clk 0:00:05]} 57. Kb3 {[%clk 0:00:32]}  Kb5 {[%clk 0:00:05]} 58. a4+ {[%clk 0:00:33]}  Ka5 {[%clk 0:00:06]} 59. Ka3 {[%clk 0:00:33]}  Kb6 {[%clk 0:00:07]} 60. Kb4 {[%clk 0:00:34]}  Ka6 {[%clk 0:00:08]} 61. Nc1 {[%clk 0:00:34]}  Kb6 {[%clk 0:00:08]} 62. Nb3 {[%clk 0:00:35]}  Ka6 {[%clk 0:00:09]} 63. a5 {[%clk 0:00:35]}  Ka7 {[%clk 0:00:09]} 64. Kb5 {[%clk 0:00:36]}  Kb7 {[%clk 0:00:10]} 65. Nd2 {[%clk 0:00:37]}  Ka7 {[%clk 0:00:11]} 66. Nc4 {[%clk 0:00:38]}  Ka8 {[%clk 0:00:12]} 67. Ne3 {[%clk 0:00:39]}  Ka7 {[%clk 0:00:12]} 68. Nd5 {[%clk 0:00:40]}  Kb7 {[%clk 0:00:13]} 69. Nc3 {[%clk 0:00:41]}  Ka7 {[%clk 0:00:14]} 70. a6 {[%clk 0:00:41]}  Ka8 {[%clk 0:00:14]} 71. Kb6 {[%clk 0:00:42]}  Kb8 {[%clk 0:00:15]} 72. Ne4 {[%clk 0:00:42]}  Ka8 {[%clk 0:00:16]} 73. Nc5 {[%clk 0:00:42]}  Kb8 {[%clk 0:00:16]} 74. Ne6 {[%clk 0:00:42]}  Ka8 {[%clk 0:00:17]} 75. Nc7+ {[%clk 0:00:43]}  Kb8 {[%clk 0:00:17]} 76. a7+ {[%clk 0:00:44]}  Kc8 {[%clk 0:00:18]} 77. a8=Q+ {[%clk 0:00:45]}  Kd7 {[%clk 0:00:19]} 78. Qc6+ {[%clk 0:00:45]}  Kd8 {[%clk 0:00:19]} 79. Na8 {[%clk 0:00:42]}  Ke7 {[%clk 0:00:18]} 80. Kc5 {[%clk 0:00:42]}  Kd8 {[%clk 0:00:19]} 81. Qc7+ {[%clk 0:00:41]}  Ke8 {[%clk 0:00:19]} 82. Kd6 {[%clk 0:00:42]}  Kf8 {[%clk 0:00:19]} 83. Ke6 {[%clk 0:00:43]}  Kg8 {[%clk 0:00:20]} 84. Kf6 {[%clk 0:00:44]}  Kh8 {[%clk 0:00:20]} 85. Qg7# {[%clk 0:00:45]} 1-0


[Site "https://www.chess.com"]

[Event "Titled Tuesday Blitz July 4 Early 2023"]
[White "Principe, Gerson"]
[Black "Samunenkov, Ihor"]
[WhiteFideId "3804550"]
[BlackFideId "14187086"]
[WhiteElo "2523"]
[BlackElo "2729"]
[Result "0-1"]
[Round "2"]
[TimeControl "180+2"]
[Date "2023.07.04"]
[WhiteClock "0:00:00"]
[BlackClock "0:00:02"]
[Board "75"]

1. d4 {[%clk 0:02:58]}  d5 {[%clk 0:02:58]} 2. Nf3 {[%clk 0:02:49]}  e6 {[%clk 0:02:56]} 3. Bf4 {[%clk 0:02:45]}  Nf6 {[%clk 0:02:54]} 4. e3 {[%clk 0:02:45]}  Bd6 {[%clk 0:02:53]} 5. Bxd6 {[%clk 0:02:41]}  Qxd6 {[%clk 0:02:54]} 6. c3 {[%clk 0:02:36]}  O-O {[%clk 0:02:51]} 7. Nbd2 {[%clk 0:02:35]}  b6 {[%clk 0:02:47]} 8. Bd3 {[%clk 0:02:35]}  Bb7 {[%clk 0:02:48]} 9. O-O {[%clk 0:02:35]}  Nbd7 {[%clk 0:02:40]} 10. a4 {[%clk 0:02:28]}  a5 {[%clk 0:02:21]} 11. Re1 {[%clk 0:02:21]}  Ne4 {[%clk 0:01:52]} 12. Bxe4 {[%clk 0:01:46]}  dxe4 {[%clk 0:01:52]} 13. Nc4 {[%clk 0:01:46]}  Qd5 {[%clk 0:01:41]} 14. Nfd2 {[%clk 0:01:40]}  e5 {[%clk 0:01:40]} 15. Qc2 {[%clk 0:01:32]}  f5 {[%clk 0:01:35]} 16. Rad1 {[%clk 0:01:28]}  exd4 {[%clk 0:01:29]} 17. cxd4 {[%clk 0:01:24]}  Rac8 {[%clk 0:01:24]} 18. Nf1 {[%clk 0:01:19]}  Ba6 {[%clk 0:01:15]} 19. b3 {[%clk 0:01:18]}  Rf6 {[%clk 0:00:48]} 20. Qa2 {[%clk 0:01:11]}  Qf7 {[%clk 0:00:42]} 21. Ng3 {[%clk 0:01:05]}  Bb7 {[%clk 0:00:38]} 22. Ne2 {[%clk 0:00:53]}  Bd5 {[%clk 0:00:37]} 23. Nf4 {[%clk 0:00:51]}  Re8 {[%clk 0:00:24]} 24. Rc1 {[%clk 0:00:46]}  g5 {[%clk 0:00:23]} 25. Nxd5 {[%clk 0:00:43]}  Qxd5 {[%clk 0:00:24]} 26. Qe2 {[%clk 0:00:30]}  c6 {[%clk 0:00:23]} 27. Nd2 {[%clk 0:00:29]}  Kh8 {[%clk 0:00:16]} 28. Qc4 {[%clk 0:00:28]}  Qd6 {[%clk 0:00:13]} 29. g3 {[%clk 0:00:24]}  c5 {[%clk 0:00:13]} 30. Red1 {[%clk 0:00:16]}  cxd4 {[%clk 0:00:13]} 31. Qxd4 {[%clk 0:00:15]}  Qxd4 {[%clk 0:00:13]} 32. exd4 {[%clk 0:00:16]}  Rd6 {[%clk 0:00:10]} 33. Nc4 {[%clk 0:00:15]}  Rc6 {[%clk 0:00:10]} 34. d5 {[%clk 0:00:16]}  Rc5 {[%clk 0:00:09]} 35. d6 {[%clk 0:00:16]}  Rec8 {[%clk 0:00:09]} 36. Rb1 {[%clk 0:00:16]}  Kg7 {[%clk 0:00:09]} 37. Rb2 {[%clk 0:00:14]}  Kf6 {[%clk 0:00:09]} 38. Rbd2 {[%clk 0:00:15]}  Ke6 {[%clk 0:00:09]} 39. Kf1 {[%clk 0:00:14]}  h6 {[%clk 0:00:09]} 40. Ke2 {[%clk 0:00:14]}  b5 {[%clk 0:00:07]} 41. axb5 {[%clk 0:00:14]}  Rxb5 {[%clk 0:00:08]} 42. Ne3 {[%clk 0:00:10]}  Rxb3 {[%clk 0:00:08]} 43. Nd5 {[%clk 0:00:10]}  a4 {[%clk 0:00:06]} 44. Nc7+ {[%clk 0:00:09]}  Kf7 {[%clk 0:00:06]} 45. Rd5 {[%clk 0:00:08]}  Kf6 {[%clk 0:00:05]} 46. Ra5 {[%clk 0:00:08]}  a3 {[%clk 0:00:05]} 47. Rdd5 {[%clk 0:00:06]}  Rf3 {[%clk 0:00:02]} 48. Rd2 {[%clk 0:00:00]}  Rb8 {[%clk 0:00:02]} 0-1


[Site "https://www.chess.com"]

[Event "Titled Tuesday Blitz July 4 Early 2023"]
[White "Wagner, Dennis"]
[Black "Sandro970"]
[WhiteFideId "24650684"]
[WhiteElo "2725"]
[BlackElo "2500"]
[Result "1-0"]
[Round "2"]
[TimeControl "180+2"]
[Date "2023.07.04"]
[WhiteClock "0:00:35"]
[BlackClock "0:00:06"]
[Board "76"]

1. e4 {[%clk 0:03:00]}  d6 {[%clk 0:02:53]} 2. d4 {[%clk 0:03:00]}  Nf6 {[%clk 0:02:49]} 3. Nc3 {[%clk 0:03:00]}  Nbd7 {[%clk 0:02:50]} 4. f4 {[%clk 0:03:00]}  e5 {[%clk 0:02:50]} 5. Nf3 {[%clk 0:02:58]}  exd4 {[%clk 0:02:48]} 6. Qxd4 {[%clk 0:02:56]}  c6 {[%clk 0:02:44]} 7. Bc4 {[%clk 0:02:55]}  d5 {[%clk 0:02:42]} 8. exd5 {[%clk 0:02:52]}  Bc5 {[%clk 0:02:41]} 9. Qd3 {[%clk 0:02:36]}  O-O {[%clk 0:02:41]} 10. dxc6 {[%clk 0:02:30]}  Re8+ {[%clk 0:02:34]} 11. Kf1 {[%clk 0:02:30]}  bxc6 {[%clk 0:02:34]} 12. Bd2 {[%clk 0:02:25]}  Ng4 {[%clk 0:02:21]} 13. Ng5 {[%clk 0:02:14]}  Ndf6 {[%clk 0:01:54]} 14. Bxf7+ {[%clk 0:02:03]}  Kh8 {[%clk 0:01:49]} 15. Bxe8 {[%clk 0:01:59]}  Qxe8 {[%clk 0:01:31]} 16. Re1 {[%clk 0:01:58]}  Qg8 {[%clk 0:01:09]} 17. Re2 {[%clk 0:01:47]}  a5 {[%clk 0:01:00]} 18. Qf3 {[%clk 0:00:41]}  Ba6 {[%clk 0:00:41]} 19. Qxc6 {[%clk 0:00:41]}  Bxe2+ {[%clk 0:00:24]} 20. Nxe2 {[%clk 0:00:42]}  Qc4 {[%clk 0:00:20]} 21. Qxa8+ {[%clk 0:00:41]}  Ng8 {[%clk 0:00:06]} 22. b3 {[%clk 0:00:35]} 1-0


[Site "https://www.chess.com"]

[Event "Titled Tuesday Blitz July 4 Early 2023"]
[White "Kupervaser, Erez"]
[Black "Kourkoulos-Arditis, Stamatis"]
[WhiteFideId "2814587"]
[BlackFideId "4221990"]
[WhiteElo "2500"]
[BlackElo "2721"]
[Result "0-1"]
[Round "2"]
[TimeControl "180+2"]
[Date "2023.07.04"]
[WhiteClock "0:00:00"]
[BlackClock "0:00:04"]
[Board "77"]

1. e4 {[%clk 0:02:49]}  c5 {[%clk 0:02:59]} 2. Nf3 {[%clk 0:02:48]}  e6 {[%clk 0:02:59]} 3. d4 {[%clk 0:02:46]}  cxd4 {[%clk 0:03:00]} 4. Nxd4 {[%clk 0:02:47]}  Nf6 {[%clk 0:02:59]} 5. Nc3 {[%clk 0:02:47]}  d6 {[%clk 0:02:59]} 6. g4 {[%clk 0:02:46]}  h6 {[%clk 0:02:59]} 7. Rg1 {[%clk 0:02:44]}  Be7 {[%clk 0:02:54]} 8. h4 {[%clk 0:02:41]}  d5 {[%clk 0:02:52]} 9. exd5 {[%clk 0:02:17]}  Nxd5 {[%clk 0:02:53]} 10. Nxd5 {[%clk 0:02:16]}  exd5 {[%clk 0:02:47]} 11. Nf5 {[%clk 0:02:00]}  Bxf5 {[%clk 0:02:39]} 12. gxf5 {[%clk 0:02:01]}  Bxh4 {[%clk 0:02:23]} 13. Rxg7 {[%clk 0:01:40]}  Nc6 {[%clk 0:02:21]} 14. Qe2+ {[%clk 0:01:25]}  Kf8 {[%clk 0:02:20]} 15. Rg4 {[%clk 0:01:18]}  Bf6 {[%clk 0:02:02]} 16. c3 {[%clk 0:01:12]}  Qa5 {[%clk 0:01:39]} 17. Be3 {[%clk 0:01:10]}  d4 {[%clk 0:01:39]} 18. Bd2 {[%clk 0:01:08]}  Re8 {[%clk 0:01:37]} 19. Re4 {[%clk 0:01:09]}  Rxe4 {[%clk 0:01:33]} 20. Qxe4 {[%clk 0:01:09]}  dxc3 {[%clk 0:01:33]} 21. bxc3 {[%clk 0:01:09]}  Bxc3 {[%clk 0:01:28]} 22. Rd1 {[%clk 0:01:09]}  Kg7 {[%clk 0:00:43]} 23. f6+ {[%clk 0:01:08]}  Kf8 {[%clk 0:00:35]} 24. Be2 {[%clk 0:00:26]}  Bxd2+ {[%clk 0:00:31]} 25. Rxd2 {[%clk 0:00:27]}  Qc3 {[%clk 0:00:31]} 26. Qf5 {[%clk 0:00:16]}  Nd4 {[%clk 0:00:30]} 27. Qd5 {[%clk 0:00:10]}  Ne6 {[%clk 0:00:27]} 28. Kf1 {[%clk 0:00:08]}  Qxf6 {[%clk 0:00:26]} 29. Qxb7 {[%clk 0:00:08]}  Kg7 {[%clk 0:00:20]} 30. Qxa7 {[%clk 0:00:07]}  Rc8 {[%clk 0:00:19]} 31. Qe3 {[%clk 0:00:07]}  Nf4 {[%clk 0:00:18]} 32. Qg3+ {[%clk 0:00:07]}  Kf8 {[%clk 0:00:15]} 33. Bf3 {[%clk 0:00:06]}  Rc3 {[%clk 0:00:14]} 34. Qg4 {[%clk 0:00:05]}  h5 {[%clk 0:00:11]} 35. Qg3 {[%clk 0:00:01]}  Qf5 {[%clk 0:00:05]} 36. Re2 {[%clk 0:00:00]}  Rc1+ {[%clk 0:00:04]} 0-1


[Site "https://www.chess.com"]

[Event "Titled Tuesday Blitz July 4 Early 2023"]
[White "Matinian, Nikita"]
[Black "Guliev, Logman"]
[WhiteFideId "24129100"]
[BlackFideId "13400061"]
[WhiteElo "2709"]
[BlackElo "2482"]
[Result "0-1"]
[Round "2"]
[TimeControl "180+2"]
[Date "2023.07.04"]
[WhiteClock "0:00:00"]
[BlackClock "0:00:22"]
[Board "79"]

1. e4 {[%clk 0:02:57]}  c5 {[%clk 0:02:59]} 2. Nf3 {[%clk 0:02:56]}  d6 {[%clk 0:02:59]} 3. Bb5+ {[%clk 0:02:56]}  Bd7 {[%clk 0:02:58]} 4. Bxd7+ {[%clk 0:02:54]}  Qxd7 {[%clk 0:02:59]} 5. O-O {[%clk 0:02:54]}  Nc6 {[%clk 0:02:58]} 6. c3 {[%clk 0:02:54]}  e6 {[%clk 0:02:56]} 7. d4 {[%clk 0:02:54]}  cxd4 {[%clk 0:02:55]} 8. cxd4 {[%clk 0:02:55]}  Nf6 {[%clk 0:02:55]} 9. Nc3 {[%clk 0:02:55]}  d5 {[%clk 0:02:54]} 10. e5 {[%clk 0:02:52]}  Ne4 {[%clk 0:02:54]} 11. Ne2 {[%clk 0:02:40]}  Be7 {[%clk 0:02:46]} 12. Ne1 {[%clk 0:02:37]}  h6 {[%clk 0:02:43]} 13. f3 {[%clk 0:02:28]}  Ng5 {[%clk 0:02:43]} 14. h4 {[%clk 0:02:28]}  Nh7 {[%clk 0:02:42]} 15. g3 {[%clk 0:02:27]}  Rc8 {[%clk 0:02:41]} 16. Nd3 {[%clk 0:02:22]}  f6 {[%clk 0:02:37]} 17. f4 {[%clk 0:02:07]}  O-O {[%clk 0:02:33]} 18. Be3 {[%clk 0:02:03]}  fxe5 {[%clk 0:02:28]} 19. fxe5 {[%clk 0:02:02]}  Rxf1+ {[%clk 0:02:26]} 20. Qxf1 {[%clk 0:02:01]}  Nb4 {[%clk 0:02:24]} 21. Nxb4 {[%clk 0:01:52]}  Bxb4 {[%clk 0:02:24]} 22. Nf4 {[%clk 0:01:51]}  Nf8 {[%clk 0:02:19]} 23. Qd3 {[%clk 0:01:46]}  Qa4 {[%clk 0:02:06]} 24. a3 {[%clk 0:01:30]}  Ba5 {[%clk 0:01:55]} 25. b3 {[%clk 0:01:18]}  Qd7 {[%clk 0:01:47]} 26. b4 {[%clk 0:01:15]}  Bb6 {[%clk 0:01:47]} 27. Rf1 {[%clk 0:01:05]}  Rc4 {[%clk 0:01:42]} 28. Nh5 {[%clk 0:00:54]}  Qe8 {[%clk 0:01:28]} 29. g4 {[%clk 0:00:54]}  Qe7 {[%clk 0:01:03]} 30. g5 {[%clk 0:00:32]}  Qe8 {[%clk 0:01:01]} 31. Nf6+ {[%clk 0:00:29]}  gxf6 {[%clk 0:01:00]} 32. exf6 {[%clk 0:00:21]}  Qg6 {[%clk 0:00:53]} 33. f7+ {[%clk 0:00:19]}  Kh7 {[%clk 0:00:50]} 34. Qxg6+ {[%clk 0:00:17]}  Kxg6 {[%clk 0:00:35]} 35. Rf6+ {[%clk 0:00:16]}  Kg7 {[%clk 0:00:35]} 36. Rxh6 {[%clk 0:00:13]}  Kxf7 {[%clk 0:00:34]} 37. Rf6+ {[%clk 0:00:08]}  Kg7 {[%clk 0:00:31]} 38. h5 {[%clk 0:00:08]}  Bxd4 {[%clk 0:00:30]} 39. h6+ {[%clk 0:00:08]}  Kg8 {[%clk 0:00:29]} 40. Bxd4 {[%clk 0:00:05]}  Rxd4 {[%clk 0:00:29]} 41. Kf2 {[%clk 0:00:01]}  Rg4 {[%clk 0:00:29]} 42. h7+ {[%clk 0:00:02]}  Nxh7 {[%clk 0:00:28]} 43. Rxe6 {[%clk 0:00:02]}  Nxg5 {[%clk 0:00:28]} 44. Re7 {[%clk 0:00:02]}  Ne4+ {[%clk 0:00:27]} 45. Ke3 {[%clk 0:00:02]}  Rg7 {[%clk 0:00:27]} 46. Re8+ {[%clk 0:00:02]}  Kf7 {[%clk 0:00:27]} 47. Rb8 {[%clk 0:00:01]}  Ke6 {[%clk 0:00:27]} 48. Kd4 {[%clk 0:00:02]}  Kd6 {[%clk 0:00:26]} 49. Rd8+ {[%clk 0:00:02]}  Kc6 {[%clk 0:00:25]} 50. Rxd5 {[%clk 0:00:01]}  Nd6 {[%clk 0:00:25]} 51. Rc5+ {[%clk 0:00:01]}  Kb6 {[%clk 0:00:25]} 52. a4 {[%clk 0:00:02]}  Rg4+ {[%clk 0:00:24]} 53. Kd5 {[%clk 0:00:02]}  Nf5 {[%clk 0:00:23]} 54. a5+ {[%clk 0:00:00]}  Ka6 {[%clk 0:00:22]} 0-1


[Site "https://www.chess.com"]

[Event "Titled Tuesday Blitz July 4 Early 2023"]
[White "Papasimakopoulos, Alexandros"]
[Black "Leebit02"]
[WhiteFideId "4244125"]
[WhiteElo "2708"]
[BlackElo "2469"]
[Result "0-1"]
[Round "2"]
[TimeControl "180+2"]
[Date "2023.07.04"]
[WhiteClock "0:00:17"]
[BlackClock "0:00:11"]
[Board "81"]

1. d4 {[%clk 0:03:00]}  d5 {[%clk 0:02:55]} 2. c4 {[%clk 0:03:01]}  e6 {[%clk 0:02:55]} 3. Nc3 {[%clk 0:03:01]}  Nf6 {[%clk 0:02:54]} 4. cxd5 {[%clk 0:03:01]}  exd5 {[%clk 0:02:53]} 5. Bg5 {[%clk 0:03:02]}  c6 {[%clk 0:02:44]} 6. e3 {[%clk 0:03:02]}  Be7 {[%clk 0:02:44]} 7. Bd3 {[%clk 0:03:01]}  O-O {[%clk 0:02:44]} 8. Qc2 {[%clk 0:03:02]}  h6 {[%clk 0:02:40]} 9. Bh4 {[%clk 0:03:01]}  Re8 {[%clk 0:02:37]} 10. Nf3 {[%clk 0:03:01]}  a5 {[%clk 0:02:33]} 11. O-O {[%clk 0:03:00]}  Na6 {[%clk 0:02:33]} 12. a3 {[%clk 0:03:00]}  Nc7 {[%clk 0:02:34]} 13. Ne5 {[%clk 0:02:57]}  Ne6 {[%clk 0:02:17]} 14. Rab1 {[%clk 0:02:49]}  Nd7 {[%clk 0:01:52]} 15. Bxe7 {[%clk 0:02:42]}  Qxe7 {[%clk 0:01:52]} 16. f4 {[%clk 0:02:42]}  Nf6 {[%clk 0:01:32]} 17. b4 {[%clk 0:02:38]}  axb4 {[%clk 0:01:29]} 18. axb4 {[%clk 0:02:39]}  Bd7 {[%clk 0:01:17]} 19. h3 {[%clk 0:02:30]}  b6 {[%clk 0:01:15]} 20. Ne2 {[%clk 0:02:13]}  Rec8 {[%clk 0:01:08]} 21. Ng3 {[%clk 0:02:11]}  Nd8 {[%clk 0:00:56]} 22. Nf5 {[%clk 0:02:02]}  Qf8 {[%clk 0:00:56]} 23. g4 {[%clk 0:01:52]}  c5 {[%clk 0:00:45]} 24. bxc5 {[%clk 0:01:51]}  bxc5 {[%clk 0:00:45]} 25. g5 {[%clk 0:01:52]}  cxd4 {[%clk 0:00:28]} 26. Qg2 {[%clk 0:01:45]}  Bxf5 {[%clk 0:00:24]} 27. Bxf5 {[%clk 0:01:44]}  Ne4 {[%clk 0:00:21]} 28. Bxc8 {[%clk 0:01:39]}  Rxc8 {[%clk 0:00:20]} 29. exd4 {[%clk 0:01:38]}  hxg5 {[%clk 0:00:21]} 30. fxg5 {[%clk 0:01:37]}  Qe7 {[%clk 0:00:20]} 31. h4 {[%clk 0:01:35]}  Rc3 {[%clk 0:00:21]} 32. Kh2 {[%clk 0:01:26]}  Qc7 {[%clk 0:00:19]} 33. Rb2 {[%clk 0:01:21]}  g6 {[%clk 0:00:12]} 34. Rf3 {[%clk 0:01:17]}  Rc1 {[%clk 0:00:11]} 35. Rfb3 {[%clk 0:01:13]}  Rd1 {[%clk 0:00:11]} 36. Rb4 {[%clk 0:01:05]}  Rxd4 {[%clk 0:00:11]} 37. Rxd4 {[%clk 0:00:51]}  Qxe5+ {[%clk 0:00:11]} 38. Kh3 {[%clk 0:00:45]}  Qxd4 {[%clk 0:00:12]} 39. Ra2 {[%clk 0:00:33]}  Ne6 {[%clk 0:00:09]} 40. Qf3 {[%clk 0:00:23]}  Kg7 {[%clk 0:00:09]} 41. Re2 {[%clk 0:00:20]}  N6xg5+ {[%clk 0:00:09]} 42. hxg5 {[%clk 0:00:17]}  Nxg5+ {[%clk 0:00:10]} 43. Kg3 {[%clk 0:00:17]}  Nxf3 {[%clk 0:00:11]} 44. Kxf3 {[%clk 0:00:17]}  Qd3+ {[%clk 0:00:11]} 0-1


[Site "https://www.chess.com"]

[Event "Titled Tuesday Blitz July 4 Early 2023"]
[White "Jimenez Jimenez, Leandro"]
[Black "Danielyan, Vahe"]
[WhiteFideId "6415253"]
[BlackFideId "13304828"]
[WhiteElo "2435"]
[BlackElo "2702"]
[Result "1-0"]
[Round "2"]
[TimeControl "180+2"]
[Date "2023.07.04"]
[WhiteClock "0:00:31"]
[BlackClock "0:00:49"]
[Board "83"]

1. d4 {[%clk 0:03:00]}  Nf6 {[%clk 0:02:59]} 2. c4 {[%clk 0:03:01]}  g6 {[%clk 0:02:59]} 3. Nc3 {[%clk 0:03:00]}  Bg7 {[%clk 0:03:00]} 4. e4 {[%clk 0:03:00]}  d6 {[%clk 0:03:00]} 5. f3 {[%clk 0:03:00]}  O-O {[%clk 0:02:59]} 6. Be3 {[%clk 0:03:01]}  e5 {[%clk 0:03:00]} 7. d5 {[%clk 0:03:00]}  Nh5 {[%clk 0:03:00]} 8. Qd2 {[%clk 0:02:57]}  Qh4+ {[%clk 0:02:59]} 9. g3 {[%clk 0:02:51]}  Nxg3 {[%clk 0:02:59]} 10. Bf2 {[%clk 0:02:48]}  Nxf1 {[%clk 0:02:58]} 11. Bxh4 {[%clk 0:02:48]}  Nxd2 {[%clk 0:02:58]} 12. Kxd2 {[%clk 0:02:47]}  a5 {[%clk 0:02:57]} 13. Nb5 {[%clk 0:02:47]}  Na6 {[%clk 0:02:57]} 14. Ne2 {[%clk 0:02:46]}  f5 {[%clk 0:02:57]} 15. Nec3 {[%clk 0:02:37]}  Bd7 {[%clk 0:02:50]} 16. Rhg1 {[%clk 0:02:19]}  fxe4 {[%clk 0:02:50]} 17. Nxe4 {[%clk 0:02:19]}  Rf4 {[%clk 0:02:51]} 18. Bg5 {[%clk 0:01:49]}  Rxf3 {[%clk 0:02:47]} 19. Ke2 {[%clk 0:01:44]}  Rf5 {[%clk 0:02:44]} 20. Raf1 {[%clk 0:01:29]}  Raf8 {[%clk 0:02:43]} 21. Rxf5 {[%clk 0:01:20]}  Rxf5 {[%clk 0:02:44]} 22. h4 {[%clk 0:01:19]}  b6 {[%clk 0:02:32]} 23. a4 {[%clk 0:01:15]}  Bxb5 {[%clk 0:02:31]} 24. axb5 {[%clk 0:01:13]}  Nc5 {[%clk 0:02:32]} 25. Nxc5 {[%clk 0:01:13]}  dxc5 {[%clk 0:02:30]} 26. Bd8 {[%clk 0:01:09]}  Rf7 {[%clk 0:02:26]} 27. d6 {[%clk 0:01:03]}  cxd6 {[%clk 0:02:19]} 28. Bxb6 {[%clk 0:01:03]}  e4 {[%clk 0:02:20]} 29. b3 {[%clk 0:01:02]}  Bc3 {[%clk 0:02:17]} 30. Rg4 {[%clk 0:00:58]}  Re7 {[%clk 0:02:10]} 31. Bd8 {[%clk 0:00:58]}  Re8 {[%clk 0:01:24]} 32. Bc7 {[%clk 0:00:57]}  h5 {[%clk 0:01:04]} 33. Rxg6+ {[%clk 0:00:55]}  Kf7 {[%clk 0:01:04]} 34. Rxd6 {[%clk 0:00:52]}  Be5 {[%clk 0:01:03]} 35. Rd7+ {[%clk 0:00:50]}  Ke6 {[%clk 0:01:03]} 36. Rh7 {[%clk 0:00:49]}  Bxc7 {[%clk 0:01:02]} 37. Rxc7 {[%clk 0:00:49]}  Rg8 {[%clk 0:01:03]} 38. Rxc5 {[%clk 0:00:48]}  Rg2+ {[%clk 0:01:01]} 39. Ke3 {[%clk 0:00:47]}  Rg3+ {[%clk 0:01:01]} 40. Kxe4 {[%clk 0:00:47]}  Rg4+ {[%clk 0:01:02]} 41. Kd3 {[%clk 0:00:45]}  Rxh4 {[%clk 0:01:03]} 42. b6 {[%clk 0:00:44]}  Rh3+ {[%clk 0:01:01]} 43. Kc2 {[%clk 0:00:44]}  Rh2+ {[%clk 0:01:00]} 44. Kb1 {[%clk 0:00:44]}  Kd6 {[%clk 0:01:00]} 45. Rc8 {[%clk 0:00:32]}  a4 {[%clk 0:00:49]} 46. b7 {[%clk 0:00:31]} 1-0


[Site "https://www.chess.com"]